[Event "SWE-ch Masters 2018"]
[Site "Ronneby"]
[Date "2018.07.04"]
[Round "5"]
[White "Neretljak, Nedzad"]
[Black "Mardell, Jimmy"]
[Result "1/2-1/2"]
[ECO "B76"]
[WhiteElo "2108"]
[BlackElo "2173"]
[Annotator "NA"]
[PlyCount "136"]
[EventDate "2018.06.30"]
[EventType "tourn"]
[EventCountry "SWE"]
[SourceTitle "playchess.com"]
[Source "ChessBase"]
[SourceQuality "1"]
[TimeControl "40/5400+30:1800+30"]

1. e4 {[%emt 0:00:00]} c5 {[%emt 0:00:00]} 2. Nf3 {[%emt 0:00:00]} d6 {[%emt 0:00:00]} 3. d4 {[%emt 0:00:18]} cxd4 {[%emt 0:00:00]} 4. Nxd4 Nf6 {[%emt 0:00:00]} 5. Nc3 {[%emt 0:00:21]} g6 {[%emt 0:00:05]} 6. Be3 {[%emt 0:00:21]} Bg7 {[%emt 0:00:05]} 7. f3 {[%emt 0:00:10]} O-O {[%emt 0:00:05]} 8. Qd2 {[%emt 0:00:06]} Nc6 {[%emt 0:00:06]} 9. O-O-O {[%emt 0:00:18]} d5 {[%emt 0:00:08]} 10. Bb5 {[%emt 0:05:56]} Nxd4 {[%emt 0:08:16]} 11. Bxd4 {[%emt 0:01:12]} dxe4 {[%emt 0:02:15]} 12. Qf2 {[%emt 0:05:31]} Qa5 {[%emt 0:03:57]} 13. Bc4 {[%emt 0:05:29]} exf3 {[%emt 0:08:17]} 14. gxf3 {[%emt 0:00:36]} Bf5 {[%emt 0:03:10]} 15. Rhe1 {[%emt 0:00:29]} Qc7 {[%emt 0:07:20]} 16. Bb3 {[%emt 0:02:23]} e6 {[%emt 0:06:23]} 17. Be5 {[%emt 0:02:34]} Qa5 {[%emt 0:04:42]} 18. Qh4 {[%emt 0:07:30]} Nh5 {[%emt 0:03:29]} 19. Bxg7 {[%emt 0:02:03]} Kxg7 {[%emt 0:05:18]} 20. Rd7 {[%emt 0:05:17]} Rad8 {[%emt 0:09:56]} 21. Rxb7 {[%emt 0:05:48]} Rfe8 {[%emt 0:09:58]} 22. Qf2 {[%emt 0:02:13]} a6 {[%emt 0:06:23]} 23. Qa7 {[%emt 0:00:18]} Rf8 {[%emt 0:00:10]} 24. Rb5 {[%emt 0:00:26]} Rd7 {[%emt 0:01:26]} 25. Qxd7 {[%emt 0:03:51]} axb5 {[%emt 0:00:05]} 26. Qxb5 {[%emt 0:02:07]} Qa7 {[%emt 0:00:54]} 27. Qe5+ {[%emt 0:00:46]} Kg8 {[%emt 0:01:17]} 28. Qe3 {[%emt 0:00:29]} Qc7 {[%emt 0:00:37]} 29. Qe5 {[%emt 0:04:16]} Qb6 {[%emt 0:01:20]} 30. Ne4 {[%emt 0:06:22]} Bxe4 {[%emt 0:01:23]} 31. Qxe4 {[%emt 0:00:35]} Nf6 {[%emt 0:04:16]} 32. Qe3 {[%emt 0:00:37]} Qc6 {[%emt 0:04:56]} 33. Rd1 {[%emt 0:06:05]} Rc8 {[%emt 0:02:44]} 34. c3 {[%emt 0:01:24]} h5 {[%emt 0:02:39]} 35. Rd4 {[%emt 0:02:05]} Nd5 {[%emt 0:03:41]} 36. Bxd5 {[%emt 0:04:18]} exd5 {[%emt 0:00:04]} 37. Qd3 {[%emt 0:02:26]} Qb6 {[%emt 0:01:51]} 38. f4 {[%emt 0:03:48]} Re8 {[%emt 0:00:43]} 39. f5 {[%emt 0:00:44]} Re1+ {[%emt 0:00:18]} 40. Kc2 {[%emt 0:00:09]} Rh1 {[%emt 0:01:09]} 41. Qg3 {[%emt 0:35:00]} Qa6 {[%emt 0:07:26]} 42. fxg6 {[%emt 0:00:00]} fxg6 {[%emt 0:00:12]} 43. Rb4 {[%emt 0:00:00]} Kh7 {[%emt 0:05:50]} 44. Qc7+ {[%emt 0:00:00]} Kh6 {[%emt 0:00:03]} 45. Qf4+ {[%emt 0:00:00]} Kh7 {[%emt 0:01:11]} 46. Qf7+ {[%emt 0:00:00]} Kh6 {[%emt 0:00:04]} 47. Qf8+ {[%emt 0:00:00]} Kh7 {[%emt 0:00:08]} 48. Qe7+ {[%emt 0:00:00]} Kh6 {[%emt 0:00:10]} 49. Qe5 {[%emt 0:00:00]} Kh7 {[%emt 0:06:52]} 50. Qxd5 {[%emt 0:00:00]} Rxh2+ {[%emt 0:00:15]} 51. Kb3 {[%emt 0:00:00]} Rf2 {[%emt 0:04:26]} 52. Qd7+ {[%emt 0:00:00]} Kh6 {[%emt 0:00:09]} 53. Rb8 {[%emt 0:00:00]} Qe2 {[%emt 0:01:34]} 54. Rh8+ {[%emt 0:00:17]} Kg5 {[%emt 0:00:02]} 55. Qd8+ {[%emt 0:00:38]} Kg4 {[%emt 0:00:26]} 56. Qd7+ {[%emt 0:00:45]} Kg5 {[%emt 0:01:35]} 57. Qd8+ {[%emt 0:00:34]} Kg4 {[%emt 0:00:37]} 58. Qd4+ {[%emt 0:01:44]} Kg5 {[%emt 0:02:10]} 59. c4 {[%emt 0:00:30]} Rf4 {[%emt 0:01:53]} 60. Qg1+ {[%emt 0:01:07]} Kh4 {[%emt 0:00:41]} 61. Qh1+ {[%emt 0:00:36]} Kg4 {[%emt 0:00:13]} 62. Qg1+ {[%emt 0:03:00]} Kh4 {[%emt 0:00:04]} 63. Qc1 {[%emt 0:01:01]} Qf3+ {[%emt 0:02:14]} 64. Kb4 {[%emt 0:06:08]} Qb7+ {[%emt 0:00:06]} 65. Ka4 {[%emt 0:00:36]} Qa6+ {[%emt 0:03:16]} 66. Kb4 {[%emt 0:00:06]} Qb6+ {[%emt 0:00:24]} 67. Ka4 {[%emt 0:00:56]} Qa6+ {[%emt 0:01:03]} 68. Kb4 {[%emt 0:00:29]} Qb6+ {[%emt 0:00:17]} 1/2-1/2

[Event "SWE-ch Masters 2018"]
[Site "Ronneby"]
[Date "2018.07.04"]
[Round "5"]
[White "Tegler, Erik"]
[Black "Andersson, Paul"]
[Result "1/2-1/2"]
[ECO "B26"]
[WhiteElo "2073"]
[BlackElo "2099"]
[Annotator "NA"]
[PlyCount "170"]
[EventDate "2018.06.30"]
[EventType "tourn"]
[EventCountry "SWE"]
[SourceTitle "playchess.com"]
[Source "ChessBase"]
[SourceQuality "1"]
[TimeControl "40/5400+30:1800+30"]

1. e4 {[%emt 0:00:00]} c5 {[%emt 0:00:00]} 2. Nc3 {[%emt 0:00:00]} Nc6 {[%emt 0:00:00]} 3. g3 {[%emt 0:00:00]} g6 {[%emt 0:00:00]} 4. Bg2 {[%emt 0:00:04]} Bg7 {[%emt 0:00:00]} 5. d3 {[%emt 0:00:06]} d6 {[%emt 0:01:24]} 6. Be3 {[%emt 0:00:07]} Nf6 {[%emt 0:02:02]} 7. h3 {[%emt 0:00:17]} O-O {[%emt 0:02:30]} 8. Nge2 {[%emt 0:03:44]} Rb8 {[%emt 0:14:43]} 9. Qd2 {[%emt 0:02:18]} e5 {[%emt 0:04:49]} 10. O-O {[%emt 0:04:26]} Nd4 {[%emt 0:03:16]} 11. Kh2 {[%emt 0:02:20]} Ne8 {[%emt 0:10:01]} 12. Nd5 {[%emt 0:11:34]} Nc7 {[%emt 0:03:36]} 13. Nxc7 {[%emt 0:09:53]} Qxc7 {[%emt 0:01:06]} 14. c3 {[%emt 0:03:30]} Nc6 {[%emt 0:06:58]} 15. Bh6 {[%emt 0:01:06]} f6 {[%emt 0:05:54]} 16. Bxg7 {[%emt 0:00:54]} Kxg7 {[%emt 0:00:29]} 17. f4 {[%emt 0:03:26]} Ne7 {[%emt 0:03:53]} 18. Rf2 {[%emt 0:11:44]} Be6 {[%emt 0:03:55]} 19. Raf1 {[%emt 0:01:42]} Rbd8 {[%emt 0:02:38]} 20. c4 {[%emt 0:06:12]} Nc6 {[%emt 0:02:57]} 21. a3 {[%emt 0:01:15]} a6 {[%emt 0:02:25]} 22. Nc3 {[%emt 0:04:16]} Nd4 {[%emt 0:01:17]} 23. b4 {[%emt 0:02:12]} b5 {[%emt 0:06:48]} 24. f5 {[%emt 0:09:23]} Bg8 {[%emt 0:02:37]} 25. fxg6 {[%emt 0:01:47]} hxg6 {[%emt 0:00:02]} 26. cxb5 {[%emt 0:02:28]} cxb4 {[%emt 0:02:15]} 27. axb4 {[%emt 0:01:53]} Rc8 {[%emt 0:01:03]} 28. Ne2 {[%emt 0:02:35]} Nxb5 {[%emt 0:02:13]} 29. d4 {[%emt 0:02:05]} Qc2 {[%emt 0:04:15]} 30. Qe3 {[%emt 0:02:51]} Qc4 {[%emt 0:02:47]} 31. dxe5 {[%emt 0:00:53]} dxe5 {[%emt 0:00:21]} 32. Ra1 {[%emt 0:05:11]} Qe6 {[%emt 0:01:53]} 33. h4 {[%emt 0:01:28]} Rc4 {[%emt 0:00:37]} 34. Bh3 {[%emt 0:01:10]} Qc6 {[%emt 0:00:13]} 35. Qd3 {[%emt 0:01:20]} Qb6 {[%emt 0:02:56]} 36. Raf1 {[%emt 0:00:58]} Rd8 {[%emt 0:01:09]} 37. Qf3 {[%emt 0:00:22]} Rd6 {[%emt 0:00:12]} 38. g4 {[%emt 0:01:05]} Qd8 {[%emt 0:01:47]} 39. g5 {[%emt 0:00:43]} Rcc6 {[%emt 0:00:29]} 40. Qg3 {[%emt 0:01:47]} Qe7 {[%emt 0:01:38]} 41. Rf5 {[%emt 0:06:08]} Bc4 {[%emt 0:05:32]} 42. gxf6+ {[%emt 0:01:34]} Rxf6 {[%emt 0:00:12]} 43. Rxe5 {[%emt 0:00:57]} Qxb4 {[%emt 0:05:56]} 44. Rxf6 {[%emt 0:03:51]} Rxf6 {[%emt 0:00:36]} 45. Nf4 {[%emt 0:01:58]} Qd2+ {[%emt 0:01:32]} 46. Ng2 {[%emt 0:00:09]} Nd4 {[%emt 0:02:49]} 47. Re7+ {[%emt 0:05:37]} Kf8 {[%emt 0:02:55]} 48. Rd7 {[%emt 0:00:34]} Bf7 {[%emt 0:04:05]} 49. Bg4 {[%emt 0:05:30]} Rf2 {[%emt 0:04:48]} 50. Kh3 {[%emt 0:01:27]} Rf3 {[%emt 0:06:26]} 51. Bxf3 {[%emt 0:00:43]} Be6+ {[%emt 0:01:30]} 52. Bg4 {[%emt 0:00:39]} Bxd7 {[%emt 0:00:21]} 53. Bxd7 {[%emt 0:01:46]} Ne2 {[%emt 0:00:34]} 54. Qf2+ {[%emt 0:01:01]} Kg7 {[%emt 0:00:23]} 55. Bg4 {[%emt 0:00:44]} Qd3+ {[%emt 0:01:31]} 56. Qe3 {[%emt 0:01:00]} Qxe3+ {[%emt 0:00:54]} 57. Nxe3 {[%emt 0:00:01]} Nc3 {[%emt 0:00:09]} 58. e5 {[%emt 0:00:32]} a5 {[%emt 0:00:03]} 59. Nc4 {[%emt 0:00:19]} a4 {[%emt 0:00:17]} 60. Bd7 {[%emt 0:00:15]} Kf7 {[%emt 0:00:29]} 61. Kg4 {[%emt 0:00:52]} Ke7 {[%emt 0:00:05]} 62. Bc6 {[%emt 0:00:12]} Ke6 {[%emt 0:00:39]} 63. Kf4 {[%emt 0:00:50]} Ne2+ {[%emt 0:00:29]} 64. Ke4 {[%emt 0:00:30]} Ng3+ {[%emt 0:00:10]} 65. Kf3 {[%emt 0:02:01]} Nf5 {[%emt 0:00:08]} 66. Kf4 {[%emt 0:00:12]} Nxh4 {[%emt 0:00:55]} 67. Be4 {[%emt 0:00:27]} a3 {[%emt 0:01:11]} 68. Nxa3 {[%emt 0:00:18]} g5+ {[%emt 0:00:14]} 69. Kxg5 {[%emt 0:03:03]} Kxe5 {[%emt 0:00:02]} 70. Bb7 {[%emt 0:01:17]} Nf5 {[%emt 0:00:11]} 71. Nc4+ {[%emt 0:00:19]} Kd4 {[%emt 0:00:06]} 72. Nd2 {[%emt 0:00:12]} Nd6 {[%emt 0:00:23]} 73. Bg2 {[%emt 0:00:43]} Ke3 {[%emt 0:00:23]} 74. Nb3 {[%emt 0:00:16]} Ne4+ {[%emt 0:00:41]} 75. Kf5 {[%emt 0:00:12]} Ng3+ {[%emt 0:00:32]} 76. Ke5 {[%emt 0:00:08]} Ne2 {[%emt 0:00:23]} 77. Na5 {[%emt 0:00:31]} Kf2 {[%emt 0:01:36]} 78. Bc6 {[%emt 0:00:23]} Ke3 {[%emt 0:00:15]} 79. Be4 {[%emt 0:00:40]} Ng3 {[%emt 0:00:26]} 80. Nc4+ {[%emt 0:00:13]} Kf2 {[%emt 0:00:13]} 81. Bg6 {[%emt 0:00:28]} Kf3 {[%emt 0:00:19]} 82. Nd6 {[%emt 0:00:27]} Ke3 {[%emt 0:00:16]} 83. Nf7 {[%emt 0:00:06]} Kf3 {[%emt 0:00:34]} 84. Ng5+ {[%emt 0:00:08]} Ke3 {[%emt 0:00:06]} 85. Bf7 {[%emt 0:00:23]} Ne2 {[%emt 0:00:28]} 1/2-1/2

[Event "SWE-ch Masters 2018"]
[Site "Ronneby"]
[Date "2018.07.04"]
[Round "5"]
[White "Carlsson, Andreas"]
[Black "Svorono, Gabriel"]
[Result "1-0"]
[ECO "D11"]
[WhiteElo "2029"]
[BlackElo "2105"]
[Annotator "NA"]
[PlyCount "31"]
[EventDate "2018.06.30"]
[EventType "tourn"]
[EventCountry "SWE"]
[SourceTitle "playchess.com"]
[Source "ChessBase"]
[SourceQuality "1"]
[TimeControl "40/5400+30:1800+30"]

1. d4 {[%emt 0:00:00]} d5 {[%emt 0:00:00]} 2. Nf3 {[%emt 0:00:00]} Nf6 {[%emt 0:00:00]} 3. c4 {[%emt 0:00:00]} c6 {[%emt 0:00:00]} 4. e3 {[%emt 0:01:20]} e6 {[%emt 0:01:04]} 5. b3 {[%emt 0:01:10]} Bd6 {[%emt 0:00:16]} 6. Bd3 {[%emt 0:00:27]} Nbd7 {[%emt 0:01:06]} 7. Bb2 {[%emt 0:00:47]} O-O {[%emt 0:02:54]} 8. O-O {[%emt 0:00:25]} Ne4 {[%emt 0:01:27]} 9. Qc2 {[%emt 0:04:21]} f5 {[%emt 0:00:51]} 10. Ne5 {[%emt 0:00:29]} Qg5 {[%emt 0:06:26]} 11. f4 {[%emt 0:00:58]} Qe7 {[%emt 0:00:50]} 12. Nd2 {[%emt 0:00:46]} g5 {[%emt 0:02:40]} 13. fxg5 {[%emt 0:03:03]} Qxg5 {[%emt 0:00:45]} 14. Rf3 {[%emt 0:06:20]} Kh8 {[%emt 0:01:58]} 15. Bxe4 {[%emt 0:02:56]} fxe4 {[%emt 0:01:37]} 16. Rxf8+ {[%emt 0:00:09]} 1-0

[Event "SWE-ch Masters 2018"]
[Site "Ronneby"]
[Date "2018.07.04"]
[Round "5"]
[White "Bit-Narva, David"]
[Black "Palmblad, Jan Peter"]
[Result "0-1"]
[ECO "D94"]
[WhiteElo "1977"]
[BlackElo "2099"]
[Annotator "NA"]
[PlyCount "54"]
[EventDate "2018.06.30"]
[EventType "tourn"]
[EventCountry "SWE"]
[SourceTitle "playchess.com"]
[Source "ChessBase"]
[SourceQuality "1"]
[TimeControl "40/5400+30:1800+30"]

1. d4 {[%emt 0:00:00]} Nf6 {[%emt 0:03:07]} 2. Nf3 {[%emt 0:00:00]} g6 {[%emt 0:00:33]} 3. e3 {[%emt 0:01:34]} Bg7 {[%emt 0:00:26]} 4. c4 {[%emt 0:00:16]} d5 {[%emt 0:00:13]} 5. Nc3 {[%emt 0:01:16]} O-O {[%emt 0:00:12]} 6. Be2 {[%emt 0:01:55]} a6 {[%emt 0:00:22]} 7. c5 {[%emt 0:02:56]} c6 {[%emt 0:06:28]} 8. O-O {[%emt 0:01:16]} Nbd7 {[%emt 0:00:24]} 9. b4 {[%emt 0:00:50]} Ne8 {[%emt 0:01:06]} 10. Bb2 {[%emt 0:18:47]} Nc7 {[%emt 0:04:59]} 11. Nd2 {[%emt 0:16:17]} e5 {[%emt 0:00:13]} 12. Nb3 {[%emt 0:00:04]} e4 {[%emt 0:01:05]} 13. a4 {[%emt 0:05:11]} f5 {[%emt 0:00:20]} 14. Qd2 {[%emt 0:11:04]} Ne6 {[%emt 0:00:27]} 15. f4 {[%emt 0:00:57]} exf3 {[%emt 0:00:10]} 16. gxf3 {[%emt 0:00:03]} Bh6 {[%emt 0:08:45]} 17. Kh1 {[%emt 0:05:03]} Nf6 {[%emt 0:02:04]} 18. Bc1 {[%emt 0:11:10]} f4 {[%emt 0:07:49]} 19. e4 {[%emt 0:01:10]} dxe4 {[%emt 0:00:24]} 20. fxe4 {[%emt 0:01:00]} f3 {[%emt 0:00:12]} 21. Qxh6 {[%emt 0:00:38]} fxe2 {[%emt 0:00:08]} 22. Nxe2 {[%emt 0:01:52]} Nxe4 {[%emt 0:00:20]} 23. Rxf8+ {[%emt 0:11:04]} Nxf8 {[%emt 0:00:08]} 24. Nf4 {[%emt 0:02:49]} Bf5 {[%emt 0:05:11]} 25. Be3 {[%emt 0:02:52]} Ng5 {[%emt 0:01:50]} 26. Nh5 {[%emt 0:02:16]} Qd5+ {[%emt 0:06:19]} 27. Kg1 {[%emt 0:00:07]} Nh3+ {[%emt 0:00:15]} 0-1

[Event "SWE-ch Masters 2018"]
[Site "Ronneby"]
[Date "2018.07.05"]
[Round "6"]
[White "Wengholm, Anders"]
[Black "Nyander, Joakim"]
[Result "1/2-1/2"]
[ECO "A30"]
[WhiteElo "2186"]
[BlackElo "2203"]
[Annotator "NA"]
[PlyCount "43"]
[EventDate "2018.06.30"]
[EventType "tourn"]
[EventCountry "SWE"]
[SourceTitle "playchess.com"]
[Source "ChessBase"]
[SourceQuality "1"]
[TimeControl "40/5400+30:1800+30"]

{[%evp 8,30,48,32,47,48,50,47,42,43,43,46,55,52,41,40,70,76,62,58,68,55,56,48,50]} 1. c4 {[%emt 0:02:30]} c5 {[%emt 0:00:20]} 2. g3 {[%emt 0:00:38]} e6 {[%emt 0:00:42]} 3. Bg2 {[%emt 0:01:06]} Nf6 {[%emt 0:00:31]} 4. Nf3 {[%emt 0:01:06]} a6 {[%emt 0:02:23]} 5. Nc3 {[%emt 0:00:49]} Qc7 {[%emt 0:03:16]} 6. O-O {[%emt 0:08:15]} Be7 {[%emt 0:00:43]} 7. b3 {[%emt 0:02:35]} O-O {[%emt 0:04:33]} 8. d4 {[%emt 0:00:43]} cxd4 {[%emt 0:00:50]} 9. Nxd4 {[%emt 0:00:10]} Nc6 {[%emt 0:03:31]} 10. Bb2 {[%emt 0:00:28]} Rd8 {[%emt 0:06:30]} 11. Rc1 {[%emt 0:02:26]} Ne5 {[%emt 0:04:41]} 12. Qd2 {[%emt 0:02:51]} d6 {[%emt 0:04:41] LiveBook: 3 Games} 13. h3 {[%emt 0:42:16]} Ng6 {[%emt 0:04:30]} 14. Rfd1 {[%emt 0:11:04]} Bd7 {[%emt 0:02:17]} 15. Kh2 {[%emt 0:00:11]} Rac8 $14 {[%emt 0:01:23]} 16. Nf3 {[%emt 0:01:51]} Qb8 {[%emt 0:12:53]} 17. Ng5 {[%emt 0:00:38]} b5 {[%emt 0:04:51]} 18. cxb5 {[%emt 0:00:58]} axb5 {[%emt 0:00:21]} 19. Nge4 {[%emt 0:01:53]} Ne8 {[%emt 0:04:34]} 20. f4 {[%emt 0:03:18]} b4 {[%emt 0:03:11]} 21. Nb1 {[%emt 0:00:17]} Rxc1 {[%emt 0:04:46]} 22. Rxc1 {[%emt 0:00:35]} 1/2-1/2

[Event "SWE-ch Masters 2018"]
[Site "Ronneby"]
[Date "2018.07.05"]
[Round "6"]
[White "Mardell, Jimmy"]
[Black "Petersson, Baldur Teodor"]
[Result "0-1"]
[ECO "B40"]
[WhiteElo "2173"]
[BlackElo "2153"]
[Annotator "NA"]
[PlyCount "58"]
[EventDate "2018.06.30"]
[EventType "tourn"]
[EventCountry "SWE"]
[SourceTitle "playchess.com"]
[Source "ChessBase"]
[SourceQuality "1"]
[TimeControl "40/5400+30:1800+30"]

1. e4 {[%emt 0:00:00]} c5 {[%emt 0:00:45]} 2. Nf3 {[%emt 0:00:00]} e6 {[%emt 0:00:05]} 3. c3 {[%emt 0:00:00]} d5 {[%emt 0:00:46]} 4. e5 {[%emt 0:00:59]} d4 {[%emt 0:03:43]} 5. cxd4 {[%emt 0:07:45]} cxd4 {[%emt 0:00:07]} 6. Bb5+ {[%emt 0:00:07]} Bd7 {[%emt 0:13:55]} 7. Nxd4 {[%emt 0:12:03]} Bxb5 {[%emt 0:05:11]} 8. Nxb5 {[%emt 0:00:06]} Nc6 {[%emt 0:00:16] B40: Sicilian: 2...e6, Unusual lines} 9. O-O {[%emt 0:07:21]} a6 {[%emt 0:01:44]} 10. N5c3 {[%emt 0:04:47]} Qd4 {[%emt 0:02:34] LiveBook: 4 Games} 11. Ne2 {[%emt 0:05:24]} Qxe5 {[%emt 0:01:03]} 12. d4 {[%emt 0:00:42]} Qh5 {[%emt 0:05:22]} 13. Nbc3 {[%emt 0:03:39]} Nf6 {[%emt 0:02:27]} 14. Qb3 {[%emt 0:14:25]} O-O-O $146 {[%emt 0:03:23]} ({Predecessor:} 14... b5 15. Ng3 Qh4 16. Nxb5 axb5 17. Qxb5 {1-0 (61) Hassan,S (2325)-Surjadnji,A (2420) Cairo 1998}) 15. Bf4 {[%emt 0:05:17]} Bd6 {[%emt 0:08:03]} 16. Rac1 $11 {[%emt 0:05:48]} Kb8 {[%emt 0:03:49]} 17. Rfd1 {[%emt 0:04:04]} Qf5 {[%emt 0:05:51]} 18. Bxd6+ {[%emt 0:05:42]} Rxd6 {[%emt 0:00:09]} 19. Na4 {[%emt 0:00:04]} Qd5 {[%emt 0:02:56]} 20. Qg3 {[%emt 0:03:02]} Ne4 {[%emt 0:04:35]} 21. Qxg7 {[%emt 0:03:11]} Rdd8 {[%emt 0:00:58]} 22. Nac3 {[%emt 0:02:29]} Nxc3 {[%emt 0:04:09]} 23. Nxc3 {[%emt 0:00:06]} Qf5 {[%emt 0:01:38]} 24. Qg3+ {[%emt 0:02:31]} Ka8 {[%emt 0:00:06]} 25. d5 {[%emt 0:02:20]} exd5 {[%emt 0:00:59]} 26. Na4 {[%emt 0:02:56]} Rhg8 {[%emt 0:06:19]} 27. Rxd5 {[%emt 0:02:44]} Qxd5 {[%emt 0:02:25]} 28. Qxg8 {[%emt 0:00:09]} Qd2 {[%emt 0:01:26]} 29. Nb6+ {[%emt 0:01:47]} Ka7 {[%emt 0:00:07]} 0-1

[Event "SWE-ch Masters 2018"]
[Site "Ronneby"]
[Date "2018.07.05"]
[Round "6"]
[White "Tiger-Norqvist, Axel"]
[Black "Walinder, Lars"]
[Result "1-0"]
[ECO "C02"]
[WhiteElo "2158"]
[BlackElo "2231"]
[Annotator "NA"]
[PlyCount "115"]
[EventDate "2018.06.30"]
[EventType "tourn"]
[EventCountry "SWE"]
[SourceTitle "playchess.com"]
[Source "ChessBase"]
[SourceQuality "1"]
[TimeControl "40/5400+30:1800+30"]

1. e4 {[%emt 0:00:00]} e6 {[%emt 0:00:00]} 2. d4 {[%emt 0:00:00]} d5 {[%emt 0:00:00]} 3. e5 {[%emt 0:00:00]} c5 {[%emt 0:00:01]} 4. c3 {[%emt 0:00:00]} Qb6 {[%emt 0:00:16]} 5. Nf3 {[%emt 0:00:18]} Nc6 {[%emt 0:00:13]} 6. a3 {[%emt 0:00:08]} Nh6 {[%emt 0:01:12]} 7. b4 {[%emt 0:00:11]} cxd4 {[%emt 0:00:10]} 8. cxd4 {[%emt 0:00:06]} Nf5 {[%emt 0:00:23]} 9. Bb2 {[%emt 0:00:36]} Bd7 {[%emt 0:01:54]} 10. g4 {[%emt 0:00:26]} Nh6 {[%emt 0:00:49]} 11. h3 {[%emt 0:00:34]} f6 {[%emt 0:02:46]} 12. Bd3 {[%emt 0:02:08] C02: French: Advance Variation} (12. exf6 gxf6 13. Nc3 Nf7 14. Qe2 Be7 15. Na4 Qc7 16. Nc5 O-O 17. Bg2 Rae8 18. O-O Bd6 19. Rac1 a6 {0-1 (53) Shirov,A (2710)-Berg,E (2540) Tallinn 2006}) 12... fxe5 {[%emt 0:03:12] LiveBook: 3 Games} 13. dxe5 {[%emt 0:01:25]} Be7 {[%emt 0:14:24]} 14. Nc3 {[%emt 0:23:58]} O-O {[%emt 0:03:36]} 15. Na4 {[%emt 0:03:33]} Qd8 {[%emt 0:07:55]} 16. O-O {[%emt 0:04:57]} Rc8 $146 {[%emt 0:09:10]} ({Predecessor:} 16... Nf7 17. Qe2 Rc8 18. Nc3 Be8 19. Nb5 Qd7 {½-½ (44) Schmelz,A (2381)-Evans,G (2344) ICCF email 2010}) 17. Kg2 {[%emt 0:22:50]} Qe8 {[%emt 0:04:58]} 18. Nc5 $11 {[%emt 0:02:55]} Bxc5 {[%emt 0:04:52]} 19. bxc5 {[%emt 0:00:07]} Ne7 {[%emt 0:01:21]} 20. Nh4 {[%emt 0:05:18]} Bb5 {[%emt 0:10:07]} 21. Bd4 {[%emt 0:09:27]} Bxd3 {[%emt 0:06:04]} 22. Qxd3 {[%emt 0:00:05]} Qa4 {[%emt 0:00:26]} 23. f4 {[%emt 0:04:55]} Nc6 {[%emt 0:01:05]} 24. Be3 {[%emt 0:00:58]} g5 {[%emt 0:01:58]} 25. Ng6 {[%emt 0:01:30]} Rf7 {[%emt 0:10:57]} 26. fxg5 {[%emt 0:09:37]} Rxf1 {[%emt 0:10:20]} 27. Rxf1 {[%emt 0:03:29]} Nf7 {[%emt 0:00:31]} 28. Rf4 {[%emt 0:01:44]} Qa5 {[%emt 0:01:34]} 29. Bd4 {[%emt 0:01:05]} Kg7 {[%emt 0:01:39]} 30. Nh4 {[%emt 0:00:25]} Nxd4 {[%emt 0:00:31]} 31. g6 {[%emt 0:01:45]} Ng5 {[%emt 0:00:45]} 32. Rxd4 {[%emt 0:00:25]} Qxc5 {[%emt 0:00:31]} 33. Rb4 {[%emt 0:00:49]} b6 {[%emt 0:00:42]} 34. gxh7 {[%emt 0:00:09]} Qc2+ {[%emt 0:00:24]} 35. Qxc2 {[%emt 0:00:05]} Rxc2+ {[%emt 0:00:05]} 36. Kf1 {[%emt 0:00:23]} Kxh7 {[%emt 0:01:15]} 37. Ra4 {[%emt 0:00:30]} a5 {[%emt 0:00:47]} 38. Rf4 {[%emt 0:00:06]} Rc7 {[%emt 0:01:03]} 39. Rf6 {[%emt 0:01:37]} Rf7 {[%emt 0:00:21]} 40. Rxf7+ {[%emt 0:00:04]} Nxf7 {[%emt 0:00:18]} 41. Nf3 {[%emt 0:30:36]} Kg6 {[%emt 0:05:29]} 42. h4 {[%emt 0:00:00]} b5 {[%emt 0:04:08]} 43. Ke2 {[%emt 0:00:00]} Nh6 {[%emt 0:02:10]} 44. h5+ {[%emt 0:00:00]} Kg7 {[%emt 0:01:22]} 45. g5 {[%emt 0:00:00]} Nf5 {[%emt 0:00:58]} 46. Kd3 {[%emt 0:00:00]} Ng3 {[%emt 0:04:24]} 47. h6+ {[%emt 0:00:00]} Kh7 {[%emt 0:13:14]} 48. Nd4 {[%emt 0:00:00]} Ne4 {[%emt 0:00:43]} 49. Nxe6 {[%emt 0:00:00]} b4 {[%emt 0:00:17]} 50. axb4 {[%emt 0:00:00]} axb4 {[%emt 0:00:03]} 51. Nf8+ {[%emt 0:00:00]} Kg8 {[%emt 0:02:08]} 52. h7+ {[%emt 0:00:00]} Kg7 {[%emt 0:00:38]} 53. g6 {[%emt 0:00:00]} Nc5+ {[%emt 0:00:35]} 54. Kc2 {[%emt 0:00:00]} b3+ {[%emt 0:00:28]} 55. Kb1 {[%emt 0:00:00]} d4 {[%emt 0:01:12]} 56. e6 {[%emt 0:00:00]} d3 {[%emt 0:00:33]} 57. e7 {[%emt 0:00:00]} d2 {[%emt 0:00:20]} 58. e8=N+ {[%emt 0:00:00]} 1-0

[Event "SWE-ch Masters 2018"]
[Site "Ronneby"]
[Date "2018.07.05"]
[Round "6"]
[White "Andersson, Paul"]
[Black "Neretljak, Nedzad"]
[Result "1-0"]
[ECO "A48"]
[WhiteElo "2099"]
[BlackElo "2108"]
[Annotator "NA"]
[PlyCount "45"]
[EventDate "2018.06.30"]
[EventType "tourn"]
[EventCountry "SWE"]
[SourceTitle "playchess.com"]
[Source "ChessBase"]
[SourceQuality "1"]
[TimeControl "40/5400+30:1800+30"]

{[%evp 16,41,45,32767,48,3,16,32767,20,2,12,0,12,12,53,35,46,57,97,32767,32767,106,32767,32767,238,245,32767,295]} 1. d4 {[%emt 0:00:25]} Nf6 {[%emt 0:00:03]} 2. Nf3 {[%emt 0:00:20]} g6 {[%emt 0:00:45]} 3. c4 {[%emt 0:01:12]} Bg7 {[%emt 0:00:19]} 4. Nc3 {[%emt 0:00:08]} O-O {[%emt 0:00:31]} 5. Bg5 {[%emt 0:01:18]} c5 {[%emt 0:01:58]} 6. d5 {[%emt 0:04:11]} h6 {[%emt 0:01:44]} 7. Bh4 {[%emt 0:00:25]} d6 {[%emt 0:01:00]} 8. e3 {[%emt 0:03:19]} Bg4 {[%emt 0:07:02] E61: King's Indian: Early deviations for White, including Smyslov System} (8... g5 9. Bg3 Nh5 10. Bd3 f5 11. Nd2 Nxg3 12. hxg3 Nd7 13. f4 Nf6 14. Qe2 gxf4 15. gxf4 Ng4 16. e4 fxe4 17. Qxe4 {0-1 (34) Indjic,A (2581)-Amin,B (2680) Abu Dhabi 2017}) 9. Be2 {[%emt 0:02:04]} Nbd7 {[%emt 0:04:59]} 10. O-O {[%emt 0:02:32]} g5 {[%emt 0:02:23]} 11. Bg3 {[%emt 0:01:13]} Nh5 {[%emt 0:01:39]} 12. Nd2 $146 {[%emt 0:04:45]} ({Predecessor:} 12. Qc2 Ndf6 13. Rae1 Nxg3 14. fxg3 Bd7 15. Nd2 {1-0 (45) Andersen,L (2089)-Rasmussen,J (2122) ICCF email 2007}) 12... Nxg3 {[%emt 0:00:45]} 13. hxg3 {[%emt 0:04:09]} Bf5 {[%emt 0:00:32]} 14. f4 {[%emt 0:03:40]} e6 {[%emt 0:02:47]} 15. dxe6 {[%emt 0:13:38]} fxe6 {[%emt 0:01:09]} 16. Nde4 $1 {[%emt 0:02:08]} gxf4 {[%emt 0:00:57]} 17. gxf4 {[%emt 0:01:20]} Qh4 {[%emt 0:14:06]} 18. g3 {[%emt 0:10:07]} Qh3 {[%emt 0:03:49]} 19. Rf2 {[%emt 0:02:09]} Bxe4 {[%emt 0:00:06]} 20. Nxe4 {[%emt 0:00:08]} Nf6 {[%emt 0:00:20]} 21. Rg2 $18 {[%emt 0:06:21]} h5 {[%emt 0:05:04]} 22. Nf2 {[%emt 0:02:51]} Qf5 {[%emt 0:01:32]} 23. Bd3 {[%emt 0:00:12]} 1-0